bitfinex/quotes_ETHUSD_20260302
["timestamp","ask_amount","ask_price","bid_price","bid_amount"]
[1772414903018,2.50316438,1969.8,1969.1,1.31677962]
[1772414903191,2.50316438,1969.8,1969.2,1.26955108]
[1772414903599,1.234,1969.8,1969.2,1.26955108]
[1772414903792,3.35868654,1970.6,1969.3,1.31577962]
[1772414903991,2.50271352,1970.5,1969.5,1.31577962]
[1772414904628,1.29403901,1970.4,1969.5,1.31577962]
[1772414905233,2.52803901,1970.4,1969.5,1.31577962]
[1772414905437,3.79685844,1970.4,1969.6,2.58507287]
[1772414905610,2.50281943,1970.4,1969.6,2.58507287]
[1772414908038,3.79685844,1970.4,1969.6,2.58507287]
[1772414908402,1.29403901,1970.3,1969.5,1.26932319]
[1772414908622,1.29403901,1970.2,1969.4,1.26937365]
[1772414909238,1.29403901,1970.2,1969.3,2.58522961]
[1772414909437,1.29403901,1969.9,1969.1,0.001]
[1772414909707,5.86185092,1969.8,1969.1,0.001]
[1772414911610,1.26916438,1969.8,1969.1,1.31677962]
[1772414911815,1.235,1969.7,1969.1,1.31677962]
[1772414913243,1.29403901,1970.7,1969.5,1.31577962]
[1772414913455,5.07383808,1970.9,1969.8,1.31577962]
[1772414913456,1.26850163,1970.9,1969.8,1.31577962]
[1772414913640,1.26997911,1971.0,1970.0,1.31577962]
[1772414913848,1.235,1970.9,1970.0,1.31577962]
[1772414914043,2.52903901,1970.9,1970.0,1.31577962]
[1772414914364,1.29403901,1970.8,1970.0,1.31577962]
[1772414915353,1.235,1970.9,1970.0,1.31577962]
[1772414915661,1.26852039,1970.8,1970.1,2.58475073]
[1772414915846,2.50350408,1970.9,1970.1,2.58475073]
[1772414916633,1.235,1970.9,1970.2,1.31577962]
[1772414916859,2.50346228,1970.9,1970.2,1.31577962]
[1772414917239,1.235,1970.9,1970.2,1.31577962]
[1772414917652,0.00153886,1971.0,1970.3,2.58462192]
[1772414917940,2.50393068,1971.0,1970.3,2.58462192]
[1772414918356,2.50393068,1971.0,1970.4,1.31577962]
[1772414918357,1.23553886,1971.0,1970.4,1.31577962]
[1772414919066,0.00153886,1971.0,1970.4,1.31577962]
[1772414920160,0.00153886,1971.0,1970.4,2.58454773]
[1772414922571,0.00153886,1971.0,1970.4,1.26876811]
[1772414922773,0.00153886,1971.0,1970.5,1.31577962]
[1772414923971,0.00153886,1971.0,1970.6,1.26864914]
[1772414924563,0.00153886,1971.0,1970.6,2.58442876]
[1772414925454,0.00153886,1971.0,1970.5,1.26866427]
[1772414925848,0.002,1970.9,1970.4,1.2687274]
[1772414926072,0.002,1970.9,1970.3,3.87558524]
[1772414926369,0.002,1970.9,1970.3,2.58458524]
[1772414926577,0.002,1970.9,1970.3,1.26880562]
[1772414928248,1.27045603,1970.9,1970.2,5.0755764]
[1772414929270,1.27045603,1970.9,1970.2,1.2689067]
[1772414930245,0.002,1970.9,1970.3,1.20630045]
[1772414932367,0.002,1970.9,1970.4,2.47507836]
[1772414932680,0.002,1970.9,1970.5,1.20630045]
[1772414933764,0.002,1970.9,1970.4,1.26877791]
[1772414934167,0.002,1970.9,1970.3,1.26879951]
[1772414934690,0.002,1970.9,1970.2,6.33518461]
[1772414934977,0.002,1970.9,1970.2,5.12888416]
[1772414935154,0.002,1970.9,1970.3,1.20630045]
[1772414936252,1.28406859,1970.9,1970.2,5.12888416]
[1772414936680,1.26852039,1970.8,1970.2,6.33518461]
[1772414936868,2.55256022,1970.9,1970.2,6.33518461]
[1772414937966,2.55256022,1970.9,1970.3,1.20630045]
[1772414938168,1.27049163,1970.9,1970.3,1.20630045]
[1772414938881,0.002,1970.9,1970.4,1.26877791]
[1772414939286,0.002,1970.8,1970.4,1.26877791]
[1772414940571,0.002,1970.8,1970.3,1.20630045]
[1772414940768,0.002,1970.8,1970.3,2.47514087]
[1772414941370,1.28406859,1970.8,1969.9,5.06630045]
[1772414941690,1.28406859,1970.8,1969.8,0.001]
[1772414941691,1.28206859,1970.7,1969.8,0.001]
[1772414942063,1.28206859,1970.7,1969.5,0.001]
[1772414942064,1.28206859,1969.9,1969.5,0.001]
[1772414942562,1.28206859,1969.9,1969.1,0.001]
[1772414942763,2.55123297,1969.8,1969.1,0.001]
[1772414943290,3.77823297,1969.8,1969.1,0.001]
[1772414944680,3.77923297,1969.8,1969.1,0.001]
[1772414945794,2.49801606,1970.1,1969.3,1.20630045]
[1772414946585,2.06464753,1970.0,1969.1,0.001]
[1772414946891,2.55123297,1969.8,1969.1,0.001]
[1772414947062,1.2689067,1970.2,1969.1,2.06564753]
[1772414947262,1.26878879,1970.4,1969.6,1.20630045]
[1772414947502,1.229,1970.5,1969.6,1.20630045]
[1772414947503,2.49776409,1970.5,1969.6,1.20630045]
[1772414947870,3.77983268,1970.5,1969.6,1.20630045]
[1772414948082,1.28206859,1970.4,1969.3,1.20630045]
[1772414948281,1.28206859,1970.4,1969.4,2.50330045]
[1772414948797,1.26876409,1970.5,1969.5,1.20630045]
[1772414948997,1.28206859,1970.4,1969.6,1.26929325]
[1772414949569,1.28206859,1970.2,1969.3,1.26944645]
[1772414949767,2.51106859,1970.1,1969.3,1.26944645]
[1772414950597,1.28206859,1970.1,1969.3,2.4757469]
[1772414950795,2.49776409,1970.5,1969.6,1.20630045]
[1772414950965,2.49776409,1970.5,1969.7,1.26922881]
[1772414951169,3.77983268,1970.5,1969.7,1.26922881]
[1772414951895,3.77983268,1970.5,1969.6,1.20630045]
[1772414952100,1.28406859,1970.3,1969.4,2.47568085]
[1772414952281,1.28406859,1970.3,1969.4,1.20630045]
[1772414952679,2.06464753,1970.2,1969.4,1.20630045]
[1772414952883,1.28406859,1970.3,1969.2,1.27054158]
[1772414952884,1.1991376,1969.9,1969.2,1.27054158]
[1772414953096,1.26916438,1969.8,1969.2,0.001]
[1772414953700,2.46830198,1969.8,1969.2,0.001]
[1772414955203,1.1991376,1969.7,1969.2,0.001]
[1772414956413,1.231,1969.6,1969.2,0.001]
[1772414957322,1.2693577,1969.5,1969.2,0.001]
[1772414957488,1.2693577,1969.5,1969.1,0.001]
[1772414957828,1.2693577,1969.5,1968.3,8.94028459]
[1772414957829,2.06464753,1969.2,1968.3,1.27008191]
[1772414958116,2.44638619,1969.1,1968.3,1.25496142]
[1772414958316,2.44638619,1969.1,1968.1,2.5642172]
[1772414958317,3.27903372,1969.0,1968.1,1.2702172]
[1772414958615,1.21438619,1969.0,1968.1,1.2702172]
[1772414959426,1.21438619,1969.0,1968.0,7.11085402]
[1772414959427,1.21438619,1968.7,1968.0,0.77465814]
[1772414959746,2.44638619,1968.6,1968.0,0.77465814]
[1772414960018,1.21438619,1968.4,1967.8,0.006]
[1772414960227,1.21438619,1968.1,1967.5,0.003]
[1772414960517,2.89218635,1968.5,1967.0,1.27250632]
[1772414960518,1.21438619,1967.8,1967.0,1.27250632]
[1772414960674,1.232,1967.7,1967.0,1.27250632]
[1772414961320,1.27058345,1967.6,1967.0,0.00153886]
[1772414961611,1.27058345,1967.6,1966.2,1.25496142]
[1772414961612,1.21438619,1967.5,1966.2,1.25496142]
[1772414962021,1.231,1967.4,1966.2,1.25496142]
[1772414962445,1.21438619,1967.3,1966.2,1.25496142]
[1772414963691,1.21438619,1967.3,1966.0,0.00153886]
[1772414963692,2.89218635,1966.9,1966.0,0.00153886]
[1772414963891,5.33757254,1966.9,1966.0,1.27311344]
[1772414964135,1.2708418,1967.2,1966.2,1.25496142]
[1772414964434,6.31401872,1967.4,1966.1,1.292]
[1772414964435,2.50175799,1967.4,1966.3,1.25496142]
[1772414964591,3.71614418,1967.4,1966.3,1.25496142]
[1772414964791,1.21438619,1967.3,1966.3,1.25496142]
[1772414965736,1.2708418,1967.2,1966.4,1.27135882]
[1772414966369,1.27048918,1967.8,1966.6,1.25496142]
[1772414966532,1.27048918,1967.8,1966.7,1.25496142]
[1772414966935,5.15031074,1967.9,1966.7,1.25496142]
[1772414967531,0.00153886,1968.0,1967.0,1.25496142]
[1772414967735,0.00153886,1968.0,1967.2,1.25496142]
[1772414968341,0.00153886,1968.0,1967.3,1.25496142]
[1772414968740,0.00153886,1968.0,1967.4,1.25496142]
[1772414969462,0.00153886,1968.0,1966.7,2.52608282]
[1772414969463,2.89218635,1967.6,1966.7,2.52608282]
[1772414969808,3.71590196,1967.8,1966.9,1.27103563]
[1772414969961,3.71590196,1967.8,1966.8,2.52602088]
[1772414970145,4.10657254,1967.5,1966.5,1.25496142]
[1772414970961,2.48490196,1967.8,1966.5,1.25496142]
[1772414971266,4.10657254,1967.7,1966.5,2.54596142]
[1772414971879,1.27058345,1967.6,1966.6,2.52619095]
[1772414972050,2.48496964,1967.6,1966.6,2.52619095]
[1772414972758,7.97450269,1967.7,1966.7,1.25496142]
[1772414972759,1.27055096,1967.7,1966.7,1.25496142]
[1772414972971,1.27050121,1967.8,1966.7,1.25496142]
[1772414973659,1.27050121,1967.8,1966.9,1.25496142]
[1772414973842,1.27050121,1967.8,1967.0,2.52593244]
[1772414974651,10.17584168,1967.9,1967.1,1.25496142]
[1772414974652,2.5024145,1967.9,1967.1,1.25496142]
[1772414975361,2.5024145,1967.9,1966.9,1.25496142]
[1772414975362,1.21438619,1967.8,1966.9,1.25496142]
[1772414975945,1.27051887,1967.7,1967.0,1.27097102]
[1772414977576,2.48481554,1967.9,1967.0,2.52593244]
[1772414977776,1.21438619,1967.6,1966.9,1.2709907]
[1772414977954,1.27064803,1967.5,1966.8,5.13104935]
[1772414978157,1.27064803,1967.5,1966.3,0.001]
[1772414978158,4.10657254,1967.0,1966.3,0.001]
[1772414978356,5.33857254,1967.0,1966.3,0.001]
[1772414978595,5.33857254,1967.0,1966.2,0.001]
[1772414978596,1.21438619,1966.9,1966.2,0.001]
[1772414979481,1.232,1966.8,1966.2,1.27248765]
[1772414979681,2.89218635,1967.4,1966.2,1.27248765]
[1772414979682,1.21438619,1967.3,1966.2,1.27248765]
[1772414979980,1.27103563,1966.9,1966.8,0.001]
[1772414980787,1.21438619,1967.3,1966.8,0.001]
[1772414980963,8.52253784,1968.0,1966.8,0.001]
[1772414980964,1.27076384,1967.4,1966.8,0.001]
[1772414981163,1.27069239,1967.5,1966.8,0.001]
[1772414981954,5.08259212,1967.6,1966.8,0.001]
[1772414982256,1.27058345,1967.6,1966.8,0.001]
[1772414982456,7.53165827,1967.7,1966.8,1.25596142]
[1772414982457,1.27255404,1967.7,1966.8,1.25596142]
[1772414982653,2.50555404,1967.7,1966.8,1.25596142]
[1772414983764,0.002,1967.7,1966.8,1.25596142]
[1772414983962,1.27252364,1967.7,1966.8,1.25596142]
[1772414984161,0.002,1967.7,1966.9,1.27103563]
[1772414984494,0.002,1967.7,1966.9,2.52599705]
[1772414985518,0.002,1967.7,1967.0,1.25496142]
[1772414985719,0.002,1967.7,1967.2,1.25496142]
[1772414986316,0.002,1967.7,1967.3,1.2707772]
[1772414987228,0.00153886,1968.0,1967.4,1.24669679]
[1772414987739,0.00153886,1968.0,1967.4,2.53769679]
[1772414988248,0.00153886,1968.0,1967.6,2.51728024]
[1772414988622,1.27000254,1968.5,1967.6,2.51728024]
[1772414990090,1.27000254,1968.5,1967.7,1.24669679]
[1772414990296,2.50197508,1968.6,1967.7,1.24669679]
[1772414991002,2.50195112,1968.6,1967.8,1.27045431]
[1772414991248,3.69269425,1968.9,1967.9,1.24669679]
[1772414991424,1.27178715,1968.9,1967.9,1.24669679]
[1772414991756,0.002,1968.9,1968.1,1.24669679]
[1772414991936,1.27174454,1968.9,1968.1,1.24669679]
[1772414992310,0.002,1968.9,1968.1,1.24669679]
[1772414992530,1.27174756,1968.9,1968.1,1.24669679]
[1772414993023,0.002,1968.9,1968.2,1.27019611]
[1772414994433,0.002,1968.9,1968.3,1.24669679]
[1772414994730,0.002,1968.9,1968.2,1.27019611]
[1772414994909,0.002,1968.9,1968.3,1.24669679]
[1772414995112,0.002,1968.9,1968.0,2.51702199]
[1772414995514,0.002,1968.8,1968.0,2.51702199]
[1772414996134,0.002,1968.8,1968.3,1.24669679]
[1772414996309,0.002,1968.8,1968.4,1.24669679]
[1772414996510,0.002,1968.8,1968.3,1.29]
[1772414997116,0.002,1968.8,1968.3,1.27011688]
[1772414997434,0.00353886,1969.0,1968.3,1.27011688]
[1772414997637,0.00200002,1969.0,1968.3,1.27011688]
[1772414998139,1.2300894,1968.9,1968.0,1.27185838]
[1772414998502,1.2300894,1968.7,1968.0,1.27186394]
[1772414999104,1.26993802,1968.6,1968.0,0.00153886]
[1772414999754,1.26968004,1969.0,1968.0,1.24823565]
[1772415000004,1.2320894,1969.1,1968.0,1.24823565]
[1772415000268,0.002,1969.1,1968.1,5.46767954]
[1772415000471,1.26922881,1969.7,1968.6,1.24669679]
[1772415000670,2.49929442,1969.8,1968.8,1.24669679]
[1772415000884,2.09160844,1970.0,1968.9,1.24669679]
[1772415001194,1.2300894,1969.7,1968.6,3.80663481]
[1772415001478,1.2300894,1969.4,1968.5,1.26995627]
[1772415001700,1.227,1969.5,1968.6,1.24669679]
[1772415002006,1.227,1969.5,1968.5,1.26995627]
[1772415002157,0.91397241,1969.0,1968.1,1.27025099]
[1772415002468,7.05353708,1969.8,1968.2,1.24669679]
[1772415002469,1.221,1969.2,1968.2,1.24669679]
[1772415002838,1.221,1969.2,1968.3,1.24669679]
[1772415003374,1.26961556,1969.1,1968.3,1.24669679]
[1772415003674,1.2300894,1969.0,1968.1,2.55926065]
[1772415003899,1.26961556,1969.1,1968.2,1.24669679]
[1772415004108,1.226,1969.3,1968.3,1.24669679]
[1772415004287,2.49549756,1969.3,1968.3,1.24669679]
[1772415005192,2.49549756,1969.3,1968.4,1.289]
[1772415005502,1.2300894,1969.2,1968.4,1.289]
[1772415005705,1.2300894,1969.2,1968.2,1.27014927]
[1772415006310,2.89218635,1969.0,1968.1,1.27022978]
[1772415006463,4.12227575,1969.2,1968.1,1.24669679]
[1772415006664,1.2300894,1969.1,1968.1,1.24669679]
[1772415006994,1.2300894,1969.1,1968.0,1.27182383]
[1772415007200,1.2300894,1969.1,1968.1,1.24669679]
[1772415007398,1.26949756,1969.3,1968.2,1.27019611]
[1772415007399,2.49549756,1969.3,1968.2,1.27019611]
[1772415007567,2.49549756,1969.3,1968.4,1.24669679]
[1772415007885,1.2300894,1969.2,1968.3,1.289]
[1772415008085,1.2300894,1969.2,1968.1,2.51692607]
[1772415008291,5.38768391,1969.3,1968.0,1.27181831]
[1772415008292,1.2300894,1968.9,1968.0,1.27181831]
[1772415008470,1.2300894,1969.2,1968.1,1.24669679]
[1772415008987,1.26949756,1969.3,1968.1,1.24669679]
[1772415009200,2.49649756,1969.3,1968.2,1.24669679]
[1772415009511,1.227,1969.2,1968.4,1.24669679]
[1772415009812,1.229,1969.2,1968.4,1.24669679]
[1772415010570,0.002,1969.3,1968.4,1.24669679]
[1772415011024,0.002,1969.3,1968.5,1.24669679]
[1772415011594,0.002,1969.3,1968.7,1.24669679]
[1772415011908,0.002,1969.5,1968.7,1.24669679]
[1772415012203,1.226,1969.4,1968.7,1.24669679]
[1772415012375,1.2300894,1969.3,1968.4,1.27001825]
[1772415012698,1.2300894,1969.3,1968.3,6.36929596]
[1772415012699,2.89218635,1969.2,1968.3,2.55909427]
[1772415013587,1.26961556,1969.1,1968.3,2.55909427]
[1772415014209,4.04856732,1968.9,1968.2,0.001]
[1772415014422,1.26961556,1969.1,1968.2,1.21564888]
[1772415014572,1.15638097,1969.0,1968.2,0.001]
[1772415014773,1.15638097,1968.8,1968.2,0.001]
[1772415015573,2.42625449,1968.7,1968.2,0.001]
[1772415015905,5.31844084,1968.7,1968.2,0.001]
[1772415016773,1.26968434,1969.0,1968.2,1.21564888]
[1772415017174,2.52641814,1969.0,1968.2,0.001]
[1772415017409,2.89218635,1968.9,1968.2,0.001]
[1772415017715,1.26980902,1968.8,1968.2,0.001]
[1772415017877,2.52654282,1968.8,1968.2,0.001]
[1772415018376,1.26980902,1968.8,1968.2,0.001]
[1772415019104,1.26978249,1968.9,1968.2,1.1801562]
[1772415019273,1.26978249,1968.9,1968.2,0.001]
[1772415019874,1.26971035,1969.0,1968.2,1.1801562]
[1772415021503,1.26971035,1969.0,1968.2,0.001]
[1772415022211,2.49871035,1969.0,1968.2,0.001]
[1772415022771,3.69050993,1969.2,1968.2,1.1801562]
[1772415022977,1.21960283,1969.2,1968.3,1.1791562]
[1772415023202,1.26952818,1969.3,1968.3,1.1791562]
[1772415023476,1.26952818,1969.3,1968.3,1.1801562]
[1772415023887,0.002,1969.2,1968.5,1.1791562]
[1772415024297,0.002,1969.2,1968.3,0.001]
[1772415024298,2.6940629,1968.9,1968.3,0.001]
[1772415024579,3.9230629,1968.9,1968.3,0.001]
[1772415024774,1.229,1968.9,1968.3,1.27112598]
[1772415025002,2.4209071,1969.1,1968.3,1.27112598]
[1772415025003,0.002,1969.2,1968.4,1.1791562]
[1772415025182,0.002,1969.2,1968.3,1.27112598]
[1772415025183,1.2567338,1969.1,1968.3,1.27112598]
[1772415025383,1.2567338,1969.1,1968.3,0.001]
[1772415025384,2.06568569,1969.0,1968.3,0.001]
[1772415025594,1.2567338,1968.9,1968.3,0.001]
[1772415025914,1.26980902,1968.8,1968.3,0.001]
[1772415028075,1.26980902,1968.8,1968.0,0.00253886]
[1772415028076,3.32241949,1968.6,1968.0,0.00253886]
[1772415028300,2.06568569,1968.6,1968.0,1.27286144]
[1772415028488,1.26980902,1968.8,1968.1,1.1791562]
[1772415028672,1.26980902,1968.8,1968.0,1.27286144]
[1772415028874,8.71059673,1969.1,1968.1,1.1791562]
[1772415028875,2.4209071,1969.1,1968.1,1.1791562]
[1772415029076,1.26962822,1969.1,1968.2,1.1791562]
[1772415029504,3.33727954,1969.2,1968.2,1.1791562]
[1772415029671,3.33727954,1969.2,1968.1,2.71068898]
[1772415029672,1.2567338,1968.9,1968.0,2.55586144]
[1772415030107,1.26980902,1968.8,1968.0,3.73501764]
[1772415030773,1.26980902,1968.8,1968.0,2.55586144]
[1772415030978,1.26979092,1968.9,1968.1,1.1791562]
[1772415031981,1.26979092,1968.9,1968.2,1.27019611]
[1772415032809,3.32241949,1969.0,1968.2,1.27019611]
[1772415033011,2.4229071,1969.2,1968.5,1.1791562]
[1772415033323,1.27155247,1969.2,1968.5,1.1791562]
[1772415033801,1.27156629,1969.2,1968.5,1.1791562]
[1772415034712,0.002,1969.2,1968.6,1.26993802]
[1772415036809,0.002,1969.2,1968.5,2.44910685]
[1772415037013,3.32441949,1969.2,1968.3,2.71168898]
[1772415037182,1.2567338,1969.0,1968.3,1.2710944]
[1772415038004,0.002,1969.1,1968.4,1.1791562]
[1772415038309,0.002,1969.1,1968.5,1.1791562]
[1772415038477,0.002,1969.1,1968.7,1.1791562]
[1772415038884,0.002,1969.2,1968.9,1.1791562]
[1772415039711,0.002,1969.1,1968.7,1.26982258]
[1772415040427,0.002,1969.3,1968.7,1.26982258]
[1772415040428,0.002,1969.3,1968.7,2.44897878]
[1772415040614,0.002,1969.3,1968.8,1.1791562]
[1772415040615,0.002,1969.2,1968.8,1.1791562]
[1772415040807,0.002,1969.2,1968.9,1.26974452]
[1772415041019,0.002,1969.4,1969.0,1.1791562]
[1772415043124,0.002,1969.4,1969.0,2.44878425]
[1772415043425,0.004,1969.4,1969.0,2.44878425]
[1772415044136,0.002,1969.5,1969.1,1.1791562]
[1772415044304,0.004,1969.5,1969.1,1.1791562]
[1772415044698,0.002,1969.5,1969.1,1.1791562]
[1772415045340,1.2587338,1969.5,1968.6,1.26993412]
[1772415045499,3.32241949,1969.4,1968.6,1.26993412]
[1772415045695,3.32241949,1969.1,1968.3,1.29]
[1772415045907,4.55041949,1969.1,1968.3,1.29]
[1772415046111,4.55041949,1969.1,1968.3,2.56012471]
[1772415046112,3.32241949,1969.1,1968.3,2.56012471]
[1772415046399,0.002,1969.0,1968.4,1.1791562]
[1772415046636,1.201,1969.3,1968.4,1.1791562]
[1772415047035,5.74532659,1969.5,1968.7,1.16696811]
[1772415047036,0.002,1969.2,1968.7,1.16696811]
[1772415047306,0.002,1969.4,1969.0,1.26968004]
[1772415047525,0.002,1969.5,1969.0,1.26968004]
[1772415047717,0.002,1969.5,1968.9,6.24568827]
[1772415047718,0.002,1969.4,1968.9,1.16696811]
[1772415047927,0.002,1969.4,1968.6,1.289]
[1772415048130,0.002,1969.3,1968.7,1.16696811]
[1772415048622,0.002,1969.5,1968.7,1.16696811]
[1772415048623,0.002,1969.2,1968.7,2.45596811]
[1772415048816,0.002,1969.4,1968.7,2.45596811]
[1772415049220,0.002,1969.3,1968.9,2.43671263]
[1772415049631,0.002,1969.5,1969.0,1.16696811]
[1772415050145,0.002,1969.5,1969.2,1.16696811]
[1772415050700,0.002,1969.4,1969.2,1.16696811]
[1772415051130,1.27062251,1970.0,1969.2,1.16696811]
[1772415051330,1.27062251,1970.0,1969.3,1.26948661]
[1772415052239,0.00153886,1970.0,1969.3,2.43645472]
[1772415053105,0.00153886,1970.0,1969.4,1.16696811]
[1772415053333,0.002,1970.4,1969.6,1.16696811]
[1772415053537,7.49760328,1970.6,1970.2,1.16696811]
[1772415053538,0.002,1970.6,1970.2,1.16696811]
[1772415053708,0.002,1970.6,1970.3,1.16696811]
[1772415054219,0.002,1970.8,1970.3,1.16696811]
[1772415055048,1.27052815,1970.8,1970.3,1.16696811]
[1772415055227,0.002,1970.8,1970.3,1.16696811]
[1772415055542,0.002,1970.8,1970.4,1.26877791]
[1772415055743,0.002,1970.8,1970.4,2.43574602]
[1772415056230,0.002,1970.8,1970.4,1.26877791]
[1772415056452,0.002,1970.8,1970.5,1.16696811]
[1772415056957,0.002,1971.1,1970.5,1.16696811]
[1772415056958,0.004,1971.1,1970.5,1.16696811]
[1772415057429,0.004,1971.1,1970.7,1.16696811]
[1772415057628,0.002,1971.4,1970.6,1.26864914]
[1772415057629,0.002,1971.4,1970.9,1.16696811]
[1772415058025,0.002,1971.4,1970.9,2.45796811]
[1772415058233,2.06768569,1971.4,1970.6,1.16696811]
[1772415058426,3.23757483,1971.4,1970.5,1.26867281]
[1772415058841,2.06568569,1971.2,1970.4,2.55974155]
[1772415059056,2.06568569,1971.2,1970.3,3.7267805]
[1772415059356,1.17188914,1971.4,1970.3,3.7267805]
[1772415059357,3.23757483,1971.4,1970.3,3.7267805]
[1772415059554,1.26819865,1971.3,1970.3,3.7267805]
[1772415059761,1.26819865,1971.3,1970.2,1.2688603]
[1772415059762,3.23557483,1971.2,1970.2,1.2688603]
[1772415060735,1.26819865,1971.3,1970.0,1.16850697]
[1772415060736,1.16988914,1970.6,1970.0,0.00153886]
[1772415060954,1.16988914,1970.4,1969.5,1.26930945]
[1772415061256,1.224,1970.7,1969.4,6.24454489]
[1772415061257,4.45957483,1970.7,1969.4,2.43634294]
[1772415061429,4.45957483,1970.7,1969.5,1.16696811]
[1772415061624,2.43853828,1970.6,1969.6,1.26929325]
[1772415061829,3.23557483,1970.5,1969.5,2.43628959]
[1772415062125,3.23557483,1970.5,1969.3,6.36875407]
[1772415062126,3.23557483,1970.3,1969.3,1.26944059]
[1772415062331,1.16988914,1970.3,1969.3,2.56044059]
[1772415062558,1.16988914,1970.3,1969.3,3.7274087]
[1772415063155,2.43853828,1970.6,1969.4,1.16696811]
[1772415063333,1.224,1970.5,1969.5,1.16696811]
[1772415063863,2.43840953,1970.9,1969.7,1.16696811]
[1772415064067,5.07416858,1970.8,1969.8,2.45896811]
[1772415064769,3.23557483,1970.5,1969.5,2.56131653]
[1772415065134,1.224,1970.4,1969.5,2.56131653]
[1772415066040,1.2688423,1970.3,1969.5,3.72728464]
[1772415066961,1.16988914,1970.5,1969.6,1.16696811]
[1772415066962,1.26875391,1970.5,1969.6,1.16696811]
[1772415067377,0.00153886,1971.0,1969.8,1.16696811]
[1772415067539,1.26997012,1971.0,1970.0,1.16696811]
[1772415067736,0.00153886,1971.0,1970.2,1.16696811]
[1772415068061,0.00153886,1971.0,1970.3,3.72681041]
[1772415068265,0.00153886,1971.0,1970.4,1.16696811]
[1772415069162,1.171428,1971.0,1970.1,1.26892318]
[1772415069530,0.00153886,1971.0,1970.2,1.16696811]
[1772415069760,0.00153886,1971.0,1970.1,1.26892318]
[1772415069963,1.171428,1971.0,1970.1,1.26892318]
[1772415070162,1.26998112,1971.0,1970.2,1.16696811]
[1772415071266,0.00153886,1971.0,1970.2,1.16696811]
[1772415071466,1.26993089,1971.0,1970.2,1.16696811]
[1772415071846,0.00153886,1971.0,1970.2,1.16696811]
[1772415072369,0.00153886,1971.0,1970.4,1.16696811]
[1772415072545,0.002,1971.2,1970.5,1.16696811]
[1772415072872,0.002,1971.4,1971.1,1.13800989]
[1772415073579,0.002,1971.4,1971.1,2.42900989]
[1772415074276,0.002,1971.6,1971.3,1.13800989]
[1772415074566,1.26761618,1972.3,1971.5,1.13800989]
[1772415074770,1.2675693,1972.3,1971.6,2.42800989]
[1772415075098,1.26746558,1972.5,1971.7,1.13800989]
[1772415075452,1.26750195,1972.4,1971.7,1.13800989]
[1772415075645,5.06972496,1972.5,1971.7,1.13800989]
[1772415075646,1.26747537,1972.5,1971.7,1.13800989]
[1772415076167,1.26745701,1972.5,1971.7,1.13800989]
[1772415076364,1.26723438,1972.8,1971.8,2.40588695]
[1772415077557,1.26723438,1972.8,1971.9,1.15783675]
[1772415078577,1.12230276,1972.3,1971.4,1.26813432]
[1772415079988,1.12230276,1972.2,1971.3,1.291]
[1772415080578,1.26768419,1972.1,1971.3,1.291]
[1772415081082,1.26768419,1972.1,1971.3,2.55919782]
[1772415081276,1.26768419,1972.1,1971.3,1.291]
[1772415081480,1.26768419,1972.1,1971.0,1.15937561]
[1772415081481,1.12230276,1971.9,1971.0,0.00153886]
[1772415081681,1.12230276,1971.8,1971.0,0.00153886]
[1772415081882,2.06568569,1971.7,1971.0,1.26991555]
[1772415082085,4.9567287,1971.9,1971.0,0.00153886]
[1772415082270,3.7377287,1971.9,1971.0,1.26991758]
[1772415082454,1.26787706,1971.8,1971.0,0.00153886]
[1772415083748,1.26787706,1971.8,1971.0,1.15937561]
[1772415084665,5.0709979,1972.0,1971.1,1.26832732]
[1772415085582,5.0709979,1972.0,1971.1,2.42616407]
[1772415086082,1.12230276,1971.9,1971.0,0.00153886]
[1772415086255,1.12230276,1971.9,1971.0,1.2699209]
[1772415086782,1.26787706,1971.8,1971.0,0.00153886]
[1772415086982,5.07109795,1972.0,1971.0,1.15937561]
[1772415087280,2.48571934,1972.1,1971.2,1.15783675]
[1772415088148,1.218,1972.1,1971.4,1.15783675]
[1772415088354,2.48568778,1972.1,1971.4,1.15783675]
[1772415088786,2.48569744,1972.1,1971.4,1.15783675]
[1772415088984,1.12230276,1972.0,1971.1,2.42711863]
[1772415089156,1.12230276,1972.0,1971.1,0.001]
[1772415089356,2.88332657,1971.9,1971.1,0.001]
[1772415089557,1.12230276,1972.0,1971.1,0.001]
[1772415090779,1.26781276,1971.9,1971.1,0.001]
[1772415091487,1.26779582,1972.0,1971.1,1.15883675]
[1772415091657,1.26772093,1972.1,1971.1,1.15883675]
[1772415092886,0.002,1972.2,1971.1,1.15883675]
[1772415092887,5.07248494,1972.2,1971.3,1.15783675]
[1772415093179,5.07248494,1972.2,1971.3,2.44783675]
[1772415093786,5.07248494,1972.2,1971.4,1.15783675]
[1772415093996,5.07248494,1972.2,1971.2,5.12826298]
[1772415094197,1.01097586,1971.9,1971.1,0.001]
[1772415094405,2.23097586,1971.9,1971.1,0.001]
[1772415095109,1.26787706,1971.8,1971.1,0.001]
[1772415095467,2.88332657,1971.5,1970.8,0.001]
[1772415095765,3.05719282,1971.6,1970.8,1.26949156]
[1772415095766,3.26714286,1971.6,1970.8,1.26949156]
[1772415095966,1.22,1971.6,1970.9,1.15783675]
[1772415096403,1.26785958,1971.9,1970.9,1.15783675]
[1772415097218,1.26785958,1971.9,1971.1,1.15783675]
[1772415098286,1.26785958,1971.9,1971.3,1.15783675]
[1772415098496,1.26929044,1972.0,1971.3,1.15783675]
[1772415099199,0.00153886,1972.0,1971.3,2.42602709]
[1772415099377,0.00153886,1972.0,1971.4,1.15783675]
[1772415101379,0.00153886,1972.0,1971.5,1.26806999]
[1772415101979,0.002,1972.1,1971.6,1.15783675]
[1772415102180,10.252,1972.5,1971.8,1.15783675]
[1772415102181,1e-08,1972.5,1971.8,1.15783675]
[1772415102788,1e-08,1972.5,1971.7,1.289]
[1772415102789,1.26866907,1973.0,1972.3,1.15783675]
[1772415103196,1.26866442,1973.0,1972.3,1.15783675]
[1772415103404,0.00153886,1973.0,1972.3,2.42539177]
[1772415103593,0.00153886,1973.0,1972.3,1.15783675]
[1772415103795,0.00153886,1973.0,1972.3,2.42538156]
[1772415104209,0.00153886,1973.0,1972.2,2.55761466]
[1772415104411,0.00153886,1973.0,1972.2,3.71545141]
[1772415104789,0.00153886,1973.0,1972.3,1.15783675]
[1772415105516,0.00153886,1973.0,1972.4,1.26749138]
[1772415105690,0.00153886,1973.0,1972.3,2.42537695]
[1772415105890,0.00153886,1973.0,1972.4,1.15783675]
[1772415106107,0.00153886,1973.0,1972.2,1.26758555]